fUST/lending_fUST_20241014
["ID","MTS","AMOUNT","RATE_DAILY","PERIOD"]
[340214046,1728846767459,-151.0,0.00025,7]
[340214047,1728846767482,-225.623421,0.00025,7]
[340214048,1728846767504,-151.0,0.00025,7]
[340214049,1728846767528,-151.0,0.00025,7]
[340214050,1728846767550,-151.0,0.00025,7]
[340214051,1728846767573,-151.0,0.00025,7]
[340214052,1728846767597,-471.01938,0.00025,7]
[340214053,1728846767619,-471.01938,0.00025,7]
[340214054,1728846767641,-151.0,0.00025,7]
[340214055,1728846767664,-151.0,0.00025,7]
[340214056,1728846767687,-151.0,0.00025,7]
[340214057,1728846767709,-151.0,0.00025,7]
[340214058,1728846767732,-193.126254,0.00025,7]
[340214059,1728846767755,-193.126254,0.00025,7]
[340214060,1728846767778,-151.0,0.00025,7]
[340214061,1728846767801,-205.183568,0.00025,7]
[340214062,1728846767824,-205.183568,0.00025,7]
[340214063,1728846767847,-151.0,0.00025,7]
[340214064,1728846767870,-151.0,0.00025,7]
[340214065,1728846767893,-151.0,0.00025,7]
[340214066,1728846767916,-151.0,0.00025,7]
[340214067,1728846767940,-151.0,0.00025,7]
[340214068,1728846767966,-151.0,0.00025,7]
[340214069,1728846767989,-151.0,0.00025,7]
[340214070,1728846768012,-151.0,0.00025,7]
[340214071,1728846768035,-151.0,0.00025,7]
[340214072,1728846768060,-151.0,0.00025,7]
[340214073,1728846768083,-151.0,0.00025,7]
[340214074,1728846768191,-301.433709,0.00025,7]
[340214075,1728846768216,-151.0,0.00025,7]
[340214076,1728846768239,-151.0,0.00025,7]
[340214077,1728846768262,-247.979699,0.00025,7]
[340214078,1728846768284,-151.0,0.00025,7]
[340214079,1728846768307,-151.0,0.00025,7]
[340214080,1728846768330,-247.979699,0.00025,7]
[340214081,1728846768352,-151.0,0.00025,7]
[340214082,1728846768375,-151.0,0.00025,7]
[340214083,1728846768397,-151.0,0.00025,7]
[340214084,1728846768419,-151.0,0.00025,7]
[340214085,1728846768442,-151.0,0.00025,7]
[340214086,1728846768464,-250.42395886,0.00025,7]
[340214087,1728846768486,-151.0,0.00025,7]
[340214088,1728846768507,-151.0,0.00025,7]
[340214089,1728846768530,-151.0,0.00025,7]
[340214090,1728846768556,-151.0,0.00025,7]
[340214091,1728846768578,-151.0,0.00025,7]
[340214092,1728846768601,-151.0,0.00025,7]
[340214093,1728846768623,-151.0,0.00025,7]
[340214094,1728846768645,-151.0,0.00025,7]
[340214095,1728846768667,-150.112233,0.00025,3]
[340214096,1728846768689,-150.112233,0.00025,2]
[340214097,1728846768711,-150.112233,0.00025,2]
[340214098,1728846768733,-833.727346,0.00025,7]
[340214099,1728846768755,-833.727346,0.00025,7]
[340214100,1728846768777,-150.112233,0.00025,4]
[340214101,1728846768799,-150.112233,0.00025,5]
[340214102,1728846768822,-150.112233,0.00025,5]
[340214103,1728846768844,-150.112233,0.00025,2]
[340214104,1728846768866,-150.112233,0.00025,5]
[340214105,1728846768888,-150.112233,0.00025,5]
[340214106,1728846768910,-150.112233,0.00025,3]
[340214107,1728846768933,-833.727346,0.00025,7]
[340214108,1728846768960,-833.727346,0.00025,7]
[340214109,1728846768983,-151.0,0.00025,7]
[340214110,1728846769006,-151.0,0.00025,7]
[340214111,1728846769029,-151.0,0.00025,7]
[340214112,1728846769054,-151.0,0.00025,7]
[340214113,1728846769077,-151.0,0.00025,7]
[340214114,1728846769101,-151.0,0.00025,7]
[340214115,1728846769124,-151.0,0.00025,7]
[340214116,1728846769148,-151.0,0.00025,7]
[340214117,1728846769267,151.0,0.00025,7]
[340214118,1728846769359,111.10807039,0.0002499,7]
[340214119,1728846850859,152.0,0.000225,7]
[340214120,1728846851430,152.0,0.0002375,5]
[340214121,1728846910451,3000.0,0.00023582,2]
[340214122,1728846942880,858.530642,0.00023558,2]
[340214123,1728846992139,17331.3732227,0.00023561,2]
[340214124,1728847001456,165.905,0.00023561,2]
[340214125,1728847001679,165.905,0.00023569,2]
[340214126,1728847001895,165.905,0.00023576,2]
[340214127,1728847002261,165.905,0.00023583,2]
[340214128,1728847003356,165.905,0.00023591,2]
[340214129,1728847003659,165.905,0.00023598,2]
[340214130,1728847003945,165.905,0.00023605,2]
[340214131,1728847004126,165.905,0.00023613,2]
[340214132,1728847004333,165.905,0.0002362,2]
[340214133,1728847004604,165.905,0.00023628,2]
[340214134,1728847004963,165.905,0.00023635,2]
[340214135,1728847005202,165.905,0.00023642,2]
[340214136,1728847005459,165.905,0.0002365,2]
[340214137,1728847005690,165.905,0.00023657,2]
[340214138,1728847005951,165.905,0.00023664,2]
[340214139,1728847006156,165.905,0.00023672,2]
[340214140,1728847006393,165.905,0.00023679,2]
[340214141,1728847027936,4845.0659184,0.00023755,2]
[340214142,1728847116356,166.666666,0.00023133,2]
[340214143,1728847116580,166.666666,0.00023764,2]
[340214144,1728847187189,24900.0,0.00023527,2]
[340214145,1728847189668,168.068325,0.00023254,2]
[340214146,1728847244418,1319.5105774,0.0002352,2]
[340214147,1728847351967,173.2407369,0.00023513,2]
[340214148,1728847386963,250.0,0.00023791,2]
[340214149,1728847387191,250.0,0.00023856,2]
[340214150,1728847387611,250.0,0.00023921,2]
[340214151,1728847387824,250.0,0.00023987,2]
[340214152,1728847559595,3000.0,0.0002349,2]
[340214154,1728847633146,-429.67102049,0.00024043,2]
[340214155,1728847638450,429.265321,0.00023479,2]
[340214156,1728847641132,-463.14807225,0.00024043,2]
[340214157,1728847641158,-250.0,0.00024052,2]
[340214158,1728847641182,-250.0,0.00024117,2]
[340214159,1728847641203,-250.0,0.00024182,2]
[340214160,1728847641224,-217.41399012,0.00024242,2]
[340214161,1728847641247,-250.0,0.00024248,2]
[340214162,1728847641268,-250.0,0.00024313,2]
[340214163,1728847641290,-1.82466375,0.00024378,2]
[340214164,1728847661784,36303.47212423,0.00024,4]
[340214165,1728847671030,4769.288647,0.00023625,2]
[340214166,1728847680174,166.666666,0.00023202,2]
[340214167,1728847680401,166.666666,0.00023834,2]
[340214168,1728847690937,164.928839,0.0002333,2]
[340214171,1728847724919,24900.0,0.00023604,2]
[340214172,1728847783821,201.58956268,0.00024278,2]
[340214234,1728847838541,-4769.288647,0.0002431,2]
[340214236,1728847838552,-248.17533625,0.00024378,2]
[340214238,1728847838562,-0.03992615,0.00024443,2]
[340214389,1728847840048,-3.00000201,0.00024443,2]
[340214415,1728847840286,-246.96007184,0.00024443,2]
[340214417,1728847840296,-166.666666,0.00024467,2]
[340214419,1728847840306,-250.0,0.00024509,2]
[340214421,1728847840316,-201.58956268,0.00024547,2]
[340214423,1728847840326,-250.0,0.00024574,2]
[340214425,1728847840337,-191.05,0.00024638,2]
[340214427,1728847840347,-250.0,0.00024639,2]
[340214430,1728847840361,-300.0,0.00024645,2]
[340214432,1728847840373,-300.0,0.00024645,2]
[340214434,1728847840382,-18067.19395422,0.00024645,2]
[340214436,1728847840391,-7122.66992901,0.00024646,2]
[340214438,1728847840401,-521.86355886,0.00024646,2]
[340214440,1728847840410,-568.45743712,0.0002465,2]
[340214442,1728847840422,-193.66046304,0.0002465,2]
[340214444,1728847840433,-200.0,0.00024658,15]
[340214446,1728847840444,-250.0,0.00024704,2]
[340214448,1728847840455,-500.0,0.00024743,2]
[340214450,1728847840466,-500.0,0.00024743,2]
[340214453,1728847840477,-500.0,0.00024743,2]
[340214455,1728847840486,-500.0,0.00024743,2]
[340214457,1728847840497,-500.0,0.00024743,2]
[340214459,1728847840508,-500.0,0.00024743,2]
[340214460,1728847840521,-500.0,0.00024743,2]
[340214461,1728847840530,-500.0,0.00024743,2]
[340214462,1728847840539,-500.0,0.00024743,2]
[340214463,1728847840548,-500.0,0.00024743,2]
[340214464,1728847840556,-500.0,0.00024743,2]
[340214465,1728847840566,-500.0,0.00024743,2]
[340214466,1728847840575,-500.0,0.00024743,2]
[340214467,1728847840584,-500.0,0.00024743,2]
[340214468,1728847840595,-550.0,0.00024743,2]
[340214469,1728847840605,-500.0,0.00024743,2]
[340214470,1728847840614,-404.04882923,0.00024743,2]
[340214471,1728847840625,-95.95117077,0.00024743,2]
[340214472,1728847840634,-500.0,0.00024743,2]
[340214473,1728847840643,-500.0,0.00024743,2]
[340214474,1728847840652,-500.0,0.00024743,2]
[340214475,1728847840662,-500.0,0.00024743,2]
[340214476,1728847840670,-500.0,0.00024743,2]
[340214477,1728847840679,-610.92363842,0.00024743,2]
[340214478,1728847840688,-532.40544514,0.00024743,2]
[340214480,1728847840698,-500.0,0.00024743,2]
[340214482,1728847840709,-464.38755524,0.00024743,2]
[340214484,1728847840721,-577.33381011,0.00024743,2]
[340214486,1728847840731,-500.0,0.00024743,2]
[340214489,1728847840741,-500.0,0.00024743,2]
[340214491,1728847840753,-500.0,0.00024743,2]
[340214493,1728847840762,-500.0,0.00024743,2]
[340214495,1728847840772,-500.0,0.00024743,2]
[340214497,1728847840782,-500.0,0.00024743,2]
[340214499,1728847840791,-500.0,0.00024743,2]
[340214501,1728847840803,-500.0,0.00024743,2]
[340214503,1728847840814,-500.0,0.00024743,2]
[340214505,1728847840823,-500.0,0.00024743,2]
[340214507,1728847840835,-286.38464372,0.00024743,2]
[340214509,1728847840846,-1500.0,0.00024749,2]
[340214511,1728847840855,-2582.95736726,0.0002475,2]
[340214513,1728847840864,-16049.5153107,0.0002475,2]
[340214515,1728847840874,-250.0,0.0002477,2]
[340214517,1728847840885,-393.84386085,0.000248,2]
[340214519,1728847840895,-500.0,0.000248,2]
[340214521,1728847840906,-500.0,0.000248,2]
[340214523,1728847840916,-500.0,0.000248,2]
[340214525,1728847840925,-500.0,0.000248,2]
[340214527,1728847840935,-500.0,0.000248,2]
[340214529,1728847840944,-500.0,0.000248,2]
[340214531,1728847840953,-500.40597054,0.000248,2]
[340214533,1728847840963,-501.4936316,0.00024822,2]
[340214535,1728847840972,-243.79287747,0.00024825,2]
[340214537,1728847840982,-503.14975823,0.00024825,2]
[340214539,1728847840991,-378.3221902,0.00024825,2]
[340214541,1728847841007,-121.6778098,0.00024825,2]
[340214543,1728847841016,-501.3774042,0.00024825,2]
[340214545,1728847841027,-500.0,0.00024825,2]
[340214547,1728847841037,-250.0,0.00024835,2]
[340214548,1728847841046,-1709.90215326,0.00024847,2]
[340214550,1728847841059,-5286.53531753,0.00024847,2]
[340214552,1728847841070,-502.72387443,0.0002485,2]
[340214554,1728847841081,-500.0,0.0002485,2]
[340214556,1728847841090,-500.0,0.0002486,2]
[340214558,1728847841100,-500.0,0.0002486,2]
[340214559,1728847841109,-500.0,0.0002486,2]
[340214560,1728847841120,-152.0,0.0002486,2]
[340214561,1728847841130,-152.0,0.0002488,120]
[340214562,1728847841142,-250.0,0.000249,2]
[340214563,1728847841152,-471.02550999,0.00024928,2]
[340214564,1728847841162,-250.0,0.00024965,2]
[340214565,1728847841172,-1000.0,0.0002497,2]
[340214566,1728847841182,-2839.58,0.00024975,10]
[340214567,1728847841194,-2366.32,0.00024975,10]
[340214568,1728847841204,-179.29236566,0.00024984,2]
[340214569,1728847841214,-168.91462934,0.00024984,2]
[340214570,1728847841223,-223.22723047,0.00024984,2]
[340214571,1728847841231,-207.89638328,0.00024985,3]
[340214898,1728847846317,-47.7412245,0.00024975,10]
[340215992,1728847889588,250.0,0.00024157,2]
[340215993,1728847889823,250.0,0.00024223,2]
[340215994,1728847890035,250.0,0.00024289,2]
[340215996,1728848160694,273.0,0.00024001,2]
[340215997,1728848163291,3000.0,0.00023808,2]
[340215998,1728848221952,274.0,0.0001,2]
[340215999,1728848273262,214.63266,0.00023818,2]
[340216000,1728848274800,166.666666,0.00023413,2]
[340216001,1728848275637,1000.0,0.00024,4]
[340216002,1728848310894,24900.0,0.00023815,2]
[340216003,1728848428604,1589.762882,0.00023788,2]
[340216005,1728848792158,24900.0,0.00023724,2]
[340216006,1728848802788,166.666666,0.0002332,2]
[340216007,1728848803047,166.666666,0.00023956,2]
[340216008,1728848840158,1813.47793121,0.00024001,2]
[340216009,1728848845164,-250.0,0.00024088,2]
[340216010,1728848845188,-250.0,0.00024154,2]
[340216011,1728848845210,-250.0,0.0002422,2]
[340216012,1728848845234,-250.0,0.00024286,2]
[340216013,1728848845256,-250.0,0.00024352,2]
[340216014,1728848845277,-250.0,0.00024418,2]
[340216015,1728848845299,-1589.762882,0.00024473,2]
[340216016,1728848845320,-250.0,0.00024484,2]
[340216017,1728848845343,-250.0,0.0002455,2]
[340216018,1728848845365,-166.666666,0.00024592,2]
[340216019,1728848845387,-250.0,0.00024616,2]
[340216020,1728848845410,-1500.0,0.00024657,2]
[340216021,1728848845435,-250.0,0.00024682,2]
[340216022,1728848845458,-250.0,0.00024748,2]
[340216023,1728848845481,-250.0,0.00024814,2]
[340216024,1728848845505,-153.0,0.0002488,120]
[340216025,1728848845529,-250.0,0.0002488,2]
[340216026,1728848845554,-1500.0,0.00024931,2]
[340216027,1728848845579,-250.0,0.00024946,2]
[340216028,1728848845605,-300.0,0.00024949,2]
[340216029,1728848845629,-300.0,0.00024949,2]
[340216030,1728848845653,-7918.99096092,0.0002495,3]
[340216031,1728848849787,214.632661,0.00023992,2]
[340216039,1728849008551,579.06156234,0.00024253,2]
[340216256,1728849039031,-153.0,0.0002488,120]
[340216258,1728849039041,-1148.87404976,0.0002495,2]
[340216278,1728849040390,-351.12595024,0.0002495,2]
[340216279,1728849040400,-653.1140456,0.0002496,2]
[340216307,1728849043604,-346.8859544,0.0002496,2]
[340216308,1728849043614,-300.0,0.00024972,2]
[340216309,1728849043623,-300.0,0.00024972,2]
[340216310,1728849043633,-398.88018619,0.00024973,2]
[340216311,1728849043643,-168.1659351,0.00024973,2]
[340216312,1728849043654,-500.0,0.00024973,2]
[340216313,1728849043665,-500.0,0.00024973,2]
[340216314,1728849043674,-507.21255883,0.00024999,2]
[340216315,1728849043684,-281.37838279,0.00024999,2]
[340216316,1728849043694,-285.47716094,0.00024999,2]
[340216330,1728849046303,-214.52283906,0.00024999,2]
[340216331,1728849046315,-230.81486779,0.00024999,2]
[340216332,1728849046326,-218.26528392,0.00024999,2]
[340216333,1728849046336,-500.0,0.00024999,2]
[340216334,1728849046346,-452.3270471,0.00024999,2]
[340216335,1728849046358,-500.0,0.00024999,2]
[340216336,1728849046368,-500.0,0.00024999,2]
[340216337,1728849046377,-500.0,0.00024999,2]
[340216338,1728849046388,-198.48718264,0.00024999,2]
[340216339,1728849046398,-500.0,0.00024999,2]
[340216340,1728849046407,-500.0,0.00024999,2]
[340216341,1728849046417,-500.0,0.00024999,2]
[340216342,1728849046427,-500.0,0.00024999,2]
[340216343,1728849046436,-500.0,0.00024999,2]
[340216344,1728849046446,-500.0,0.00024999,2]
[340216345,1728849046455,-500.0,0.00024999,2]
[340216346,1728849046464,-500.0,0.00024999,2]
[340216347,1728849046474,-500.0,0.00024999,2]
[340216348,1728849046484,-395.06353879,0.00024999,2]
[340216351,1728849063357,529.92096,0.00024008,2]
[340216352,1728849115669,-1000.0,0.00027,120]
[340216381,1728849246610,799.0,0.00024001,2]
[340216382,1728849294664,24900.0,0.00023992,2]
[340216383,1728849303977,166.666666,0.00023584,2]
[340216384,1728849304509,525.1,0.00027,60]
[340216385,1728849348338,156.0,0.00022,2]
[340216386,1728849348674,156.0,0.00023014,2]
[340216388,1728849441665,168.068325,0.00023418,2]
[340216457,1728849605761,150.0,0.00027,60]
[340216458,1728849646878,525.0,0.00022,2]
[340216459,1728849647351,525.0,0.00022192,2]
[340216460,1728849647695,525.0,0.00023014,2]
[340216461,1728849682734,353.28064,0.00023701,2]
[340216463,1728849823258,24900.0,0.00023672,2]
[340216464,1728849860768,166.089454,0.00023288,2]
[340216465,1728849860992,166.089454,0.00023923,2]
[340216467,1728850040520,164.928839,0.000234,2]
[340216468,1728850052169,-250.0,0.00024102,2]
[340216469,1728850052191,-156.0,0.00024164,2]
[340216470,1728850052218,-17.071136,0.00024164,2]
[340216471,1728850061571,153.0,0.0002488,120]
[340216472,1728850152130,-510.928864,0.00024164,2]
[340216473,1728850152152,-250.0,0.00024168,2]
[340216474,1728850152173,-250.0,0.00024234,2]
[340216485,1728850232452,-250.0,0.000243,2]
[340216486,1728850232462,-250.0,0.00024366,2]
[340216487,1728850232625,-353.28064,0.00024386,2]
[340216488,1728850232642,-250.0,0.00024433,2]
[340216489,1728850232653,-250.0,0.00024499,2]
[340216490,1728850232665,-166.089454,0.00024557,2]
[340216491,1728850232675,-250.0,0.00024565,2]
[340216492,1728850232685,-250.0,0.00024631,2]
[340216493,1728850232695,-250.0,0.00024697,2]
[340216494,1728850232704,-250.0,0.00024763,2]
[340216495,1728850232714,-250.0,0.00024829,2]
[340216496,1728850232723,-250.0,0.00024895,2]
[340216497,1728850232732,-300.0,0.00024899,2]
[340216498,1728850232742,-2056.50892296,0.000249,2]
[340216499,1728850232755,-809.97140976,0.000249,2]
[340216500,1728850232774,-3386.35262999,0.000249,2]
[340216501,1728850232783,-300.0,0.00024932,2]
[340216502,1728850232793,-1000.0,0.00024933,2]
[340216503,1728850232802,-589.36078536,0.00024933,3]
[340216504,1728850232812,-250.0,0.00024961,2]
[340216505,1728850232822,-104.93646121,0.00024999,2]
[340216506,1728850232831,-377.6354557,0.00024999,2]
[340216507,1728850232841,-422.67713236,0.00024999,2]
[340216508,1728850232850,-500.0,0.00024999,2]
[340216509,1728850232860,-16.57624907,0.00024999,2]
[340216510,1728850232871,-483.42375093,0.00024999,2]
[340216511,1728850232881,-740.86502581,0.00024999,2]
[340216554,1728850238713,-759.13497419,0.00024999,2]
[340216556,1728850238723,-740.86502581,0.00025,7]
[340216559,1728850238734,-1097.5705185,0.00025,7]
[340216560,1728850238743,-347.90903924,0.00025,2]
[340216562,1728850238753,-1353.86899387,0.00025,7]
[340216709,1728850240665,-3.47341962,0.00025,7]
[340216710,1728850240675,-2236.1265802,0.00025,2]
[340216716,1728850240718,-6476.2012665,0.00025,2]
[340216718,1728850240727,-4288.63750512,0.00025,2]
[340216720,1728850240737,-1775.94922838,0.00025,2]
[340217284,1728850246506,-6266.588,0.00025,2]
[340217789,1728850346291,176.64032,0.00023972,2]
[340217790,1728850384598,24900.0,0.00023972,2]
[340217791,1728850397567,153.0,0.0002488,120]
[340217792,1728850422783,166.089454,0.00023344,2]
[340217793,1728850602176,6227.98,0.00024001,2]
[340217794,1728850680706,1388.56782517,0.00024001,11]
[340217795,1728850908229,24900.0,0.00023779,2]
[340217796,1728850921955,176.64032,0.00023959,2]
[340217797,1728850944917,166.089454,0.00023381,2]
[340217798,1728851231161,-250.0,0.00024139,2]
[340217799,1728851231184,-250.0,0.00024205,2]
[340217800,1728851231206,-250.0,0.00024271,2]
[340217801,1728851231228,-250.0,0.00024337,2]
[340217802,1728851231250,-185.83148334,0.00024404,2]
[340217804,1728851295528,8743.414658,0.0001,2]
[340217805,1728851318573,4292.09061225,0.0002066,7]
[340217807,1728851327294,14052.86998748,0.00016,7]
[340217836,1728851432644,-64.16851666,0.00024404,2]
[340217838,1728851432655,-250.0,0.0002447,2]
[340217840,1728851432665,-250.0,0.00024536,2]
[340217842,1728851432674,-92.0765721,0.00024602,2]
[340217860,1728851438988,-157.9234279,0.00024602,2]
[340217861,1728851438998,-153.0,0.00024658,2]
[340217862,1728851439008,-153.0,0.00024658,2]
[340217863,1728851439018,-250.0,0.00024668,2]
[340217864,1728851439028,-3168.20690559,0.00024681,2]
[340217865,1728851439038,-250.0,0.00024734,2]
[340217866,1728851439048,-250.0,0.00024801,2]
[340217867,1728851439058,-250.0,0.00024867,2]
[340217868,1728851439067,-300.0,0.00024881,2]
[340217869,1728851439077,-300.0,0.00024881,2]
[340217870,1728851439086,-5471.22884238,0.00024882,2]
[340217871,1728851439096,-164.06127219,0.00024889,2]
[340217872,1728851439106,-1000.0,0.00024893,2]
[340217873,1728851439115,-306.0,0.000249,2]
[340217874,1728851439124,-153.0,0.000249,2]
[340217875,1728851439134,-153.0,0.000249,2]
[340217876,1728851439143,-2649.51282384,0.00024902,2]
[340217877,1728851439153,-262.0,0.00024932,2]
[340217878,1728851439163,-250.0,0.00024933,2]
[340217879,1728851439173,-2672.27,0.00024972,10]
[340217880,1728851439182,-2226.89,0.00024972,10]
[340217881,1728851439192,-1855.74,0.00024972,10]
[340217882,1728851439201,-1546.45,0.00024972,10]
[340217883,1728851439210,-512.92,0.00024973,3]
[340217884,1728851439220,-256.46,0.00024973,3]
[340217885,1728851439229,-769.4,0.00024973,3]
[340217886,1728851439240,-156.25906133,0.00024982,2]
[340217887,1728851439249,-338.46149704,0.00024982,2]
[340217888,1728851439259,-439.14744968,0.00024982,2]
[340217889,1728851439268,-430.84838397,0.00024982,2]
[340217890,1728851439278,-500.0,0.00024982,2]
[340217891,1728851439288,-1025.84,0.00024982,3]
[340217892,1728851439298,-151.0,0.00024982,7]
[340217893,1728851439310,-151.0,0.00024982,7]
[340217894,1728851439319,-151.0,0.00024982,7]
[340217895,1728851439329,-151.0,0.00024982,7]
[340217896,1728851439338,-151.0,0.00024982,7]
[340217897,1728851439349,-151.0,0.00024982,7]
[340217898,1728851439358,-151.0,0.00024982,7]
[340217899,1728851439368,-151.0,0.00024982,7]
[340217900,1728851439377,-438.355071,0.00024982,7]
[340217901,1728851439390,-438.355071,0.00024982,7]
[340217902,1728851439399,-234.477965,0.00024982,7]
[340217903,1728851439408,-234.477965,0.00024982,7]
[340217904,1728851439418,-151.0,0.00024982,7]
[340217905,1728851439427,-561.113826,0.00024982,7]
[340217906,1728851439436,-181.765263,0.00024982,7]
[340217907,1728851439446,-919.21777216,0.00024982,7]
[340217908,1728851439455,-678.67120675,0.00024982,7]
[340217909,1728851439464,-231.93935949,0.00024982,2]
[340217910,1728851439474,-341725.388097,0.00024983,3]
[340217911,1728851439488,-85754.7789371,0.00024983,3]
[340217912,1728851439498,-191.05,0.00024989,2]
[340217913,1728851439507,-14292.4631562,0.0002499,3]
[340217914,1728851439516,-151.0,0.0002499,7]
[340217915,1728851439526,-207.68312,0.0002499,7]
[340217916,1728851439535,-151.0,0.0002499,7]
[340217917,1728851439547,-151.0,0.0002499,7]
[340217918,1728851439557,-151.0,0.0002499,7]
[340217919,1728851439566,-151.0,0.0002499,7]
[340217920,1728851439577,-151.0,0.0002499,7]
[340217921,1728851439586,-151.0,0.0002499,7]
[340217922,1728851439596,-438.355071,0.0002499,7]
[340217923,1728851439605,-438.355071,0.0002499,7]
[340217924,1728851439615,-234.477965,0.0002499,7]
[340217925,1728851439625,-234.477965,0.0002499,7]
[340217926,1728851439634,-185.711999,0.0002499,7]
[340217927,1728851439644,-561.113826,0.0002499,7]
[340217928,1728851439653,-14292.4631562,0.00024992,3]
[340217929,1728851439663,-151.0,0.00024992,7]
[340217930,1728851439672,-153.345325,0.00024992,7]
[340217931,1728851439682,-151.0,0.00024992,7]
[340217932,1728851439691,-151.0,0.00024992,7]
[340217933,1728851439701,-151.0,0.00024992,7]
[340217934,1728851439711,-151.0,0.00024992,7]
[340217935,1728851439720,-151.0,0.00024992,7]
[340217936,1728851439729,-438.355071,0.00024992,7]
[340217937,1728851439739,-438.355071,0.00024992,7]
[340217938,1728851439748,-234.477965,0.00024992,7]
[340217939,1728851439757,-234.477965,0.00024992,7]
[340217940,1728851439766,-561.113826,0.00024992,7]
[340217941,1728851439776,-165.954827,0.00024993,7]
[340217942,1728851439785,-165.954827,0.00024993,7]
[340217943,1728851439794,-151.0,0.00024993,7]
[340217944,1728851439804,-151.0,0.00024993,7]
[340217945,1728851439814,-250.309128,0.00024993,7]
[340217946,1728851439823,-250.309128,0.00024993,7]
[340217947,1728851439832,-151.0,0.00024993,7]
[340217948,1728851439842,-151.0,0.00024993,7]
[340217949,1728851439852,-151.665145,0.00024993,7]
[340217950,1728851439861,-151.0,0.00024993,7]
[340217951,1728851439871,-151.665145,0.00024993,7]
[340217952,1728851439881,-151.0,0.00024993,7]
[340217953,1728851439891,-151.0,0.00024993,7]
[340217954,1728851439900,-151.0,0.00024993,7]
[340217955,1728851439910,-151.0,0.00024993,3]
[340217956,1728851439919,-151.0,0.00024993,3]
[340217957,1728851439928,-151.0,0.00024993,7]
[340217958,1728851439938,-369.43666,0.00024993,7]
[340217959,1728851439948,-369.43666,0.00024993,7]
[340217960,1728851439957,-151.0,0.00024993,7]
[340217961,1728851439966,-151.0,0.00024993,7]
[340217962,1728851439976,-276.274188,0.00024993,7]
[340217963,1728851439986,-276.274188,0.00024993,7]
[340217964,1728851439995,-1087.79407,0.00024993,7]
[340217965,1728851440004,-1087.79407,0.00024993,7]
[340217966,1728851440014,-151.0,0.00024993,7]
[340217967,1728851440023,-151.0,0.00024993,7]
[340217968,1728851440032,-395.073181,0.00024993,7]
[340217969,1728851440041,-151.0,0.00024993,7]
[340217970,1728851440051,-395.073181,0.00024993,7]
[340217971,1728851440061,-339.861925,0.00024993,7]
[340217972,1728851440070,-151.0,0.00024993,7]
[340217973,1728851440080,-151.0,0.00024993,7]
[340217974,1728851440089,-339.861925,0.00024993,7]
[340217975,1728851440098,-151.0,0.00024993,7]
[340217976,1728851440107,-183.743211,0.00024993,7]
[340217977,1728851440182,-314.324144,0.00024993,7]
[340217978,1728851440191,-183.743211,0.00024993,7]
[340217979,1728851440201,-314.324144,0.00024993,7]
[340217980,1728851440211,-151.0,0.00024993,7]